Workbook

Sheet Horizontal Recoil
A1: Horizontal Recoil
A2: Minimum | B2: Maximum | C2: Tolerance | D2: Stability
A3: 0.175 | B3: 0.175 | C3: 0.525 | D3: 0.1462398437
E4: Calculating may take a few minutes. Stability is calculated as average deviation from starting crosshair position (in degrees). Higher burst length leads to more consistent results. The graph shows the probability of your crosshair being a certain amount of distance from starting point after a shot.
A5: Burst Length | B5: Simulations | C5: Graph Scale H
A6: 10 | B6: 32000 | C6: 1
B7: <= 32000
C8: Maximum Deviation
C9: 0.35
A11: Exceeded | B11: Occurences
A12: 0 | B12: 0.348603125
A13: 0.1 | B13: 0.4671375
A14: 0.2 | B14: 0
A15: 0.3 | B15: 0.184259375
A16: 0.4 | B16: 0
A17: 0.5 | B17: 0
A18: 0.6 | B18: 0
A19: 0.7 | B19: 0
A20: 0.8 | B20: 0
A21: 0.9 | B21: 0

Sheet Recoil Angle (WIP)
A1: tolerance | B1: burst length | C1: hrec min | D1: hrec max | E1: vrec | F1: rec angle min | G1: rec angle max | H1: stability
A2: 0.9 | B2: 10 | C2: 0.35 | D2: 0.39 | E2: 0.3 | F2: 20 | G2: 30 | H2: 0.3789203075
H3: 0.3283295123 | I3: 0.3570859502
A6: recoil angle minimum
A7: hrec maximum
A8: right | L8: =-D2 -> -0.39 | M8: =-C2 -> -0.35 | N8: =C2 -> 0.35 | O8: =D2 -> 0.39
A9: Hr | B9: Vr | C9: ar | D9: arad | E9: x1 | F9: y1 | G9: x2 | H9: y2 | I9: dx | J9: max right | L9: abs max left | M9: abs min left | N9: abs min right | O9: abs max right
A10: =D2 -> 0.39 | B10: =E2 -> 0.3 | C10: =F2 -> 20 | D10: =-C10/(180/PI()) -> -0.3490658504 | E10: =-B10*SIN(D10) -> 0.102606043 | F10: =B10*COS(D10) -> 0.2819077862 | G10: =A10*COS(D10)-B10*SIN(D10) -> 0.4690861651 | H10: =A10*SIN(D10)+B10*COS(D10) -> 0.1485199303 | I10: =G10-A10 -> 0.0790861651 | J10: =A10+I10 -> 0.4690861651 | L10: =MIN(J13,J31) -> -0.2638740791 | M10: =MIN(J22,J40) -> -0.2262863743 | N10: =MAX(J19,J37) -> 0.4531088913 | O10: =MAX(J10,J28) -> 0.4877499075
A11: left
A12: Hr | B12: Vr | C12: ar | D12: arad | E12: x1 | F12: y1 | G12: x2 | H12: y2 | I12: dx | J12: max left | L12: =ABS(ABS(L8)-ABS(L10)) -> 0.1261259209 | M12: =ABS(ABS(M8)-ABS(M10)) -> 0.1237136257 | N12: =ABS(ABS(N8)-ABS(N10)) -> 0.1031088913 | O12: =ABS(ABS(O8)-ABS(O10)) -> 0.09774990748
A13: =-D2 -> -0.39 | B13: =E2 -> 0.3 | C13: =F2 -> 20 | D13: =-C13/(180/PI()) -> -0.3490658504 | E13: =-B13*SIN(D13) -> 0.102606043 | F13: =B13*COS(D13) -> 0.2819077862 | G13: =A13*COS(D13)-B13*SIN(D13) -> -0.2638740791 | H13: =A13*SIN(D13)+B13*COS(D13) -> 0.4152956421 | I13: =A13-G13 -> -0.1261259209 | J13: =A13-I13 -> -0.2638740791
L14: =E2 -> 0.3 | M14: =E2 -> 0.3
L15: vrec min | M15: vrec max
A16: hrec minimum | L16: =MIN(H10,H13,H19,H22,H28,H31,H37,H40) -> 0.06480762114 | M16: =MAX(H10,H13,H19,H22,H28,H31,H37,H40) -> 0.4548076211
A17: right
A18: Hr | B18: Vr | C18: ar | D18: arad | E18: x1 | F18: y1 | G18: x2 | H18: y2 | I18: dx | J18: min right | L18: =ABS(ABS(L14)-ABS(L16)) -> 0.2351923789 | M18: =ABS(ABS(M14)-ABS(M16)) -> 0.1548076211
A19: =C2 -> 0.35 | B19: =E2 -> 0.3 | C19: =F2 -> 20 | D19: =-C19/(180/PI()) -> -0.3490658504 | E19: =-B19*SIN(D19) -> 0.102606043 | F19: =B19*COS(D19) -> 0.2819077862 | G19: =A19*COS(D19)-B19*SIN(D19) -> 0.4314984603 | H19: =A19*SIN(D19)+B19*COS(D19) -> 0.1622007361 | I19: =G19-A19 -> 0.08149846027 | J19: =A19+I19 -> 0.4314984603
A20: left
A21: Hr | B21: Vr | C21: ar | D21: arad | E21: x1 | F21: y1 | G21: x2 | H21: y2 | I21: dx | J21: min left
A22: =-C2 -> -0.35 | B22: =E2 -> 0.3 | C22: =F2 -> 20 | D22: =-C22/(180/PI()) -> -0.3490658504 | E22: =-B22*SIN(D22) -> 0.102606043 | F22: =B22*COS(D22) -> 0.2819077862 | G22: =A22*COS(D22)-B22*SIN(D22) -> -0.2262863743 | H22: =A22*SIN(D22)+B22*COS(D22) -> 0.4016148364 | I22: =A22-G22 -> -0.1237136257 | J22: =A22-I22 -> -0.2262863743
A24: recoil angle maximum
A25: hrec maximum
A26: right
A27: Hr | B27: Vr | C27: ar | D27: arad | E27: x1 | F27: y1 | G27: x2 | H27: y2 | I27: dx | J27: max right
A28: =D2 -> 0.39 | B28: =E2 -> 0.3 | C28: =G2 -> 30 | D28: =-C28/(180/PI()) -> -0.5235987756 | E28: =-B28*SIN(D28) -> 0.15 | F28: =B28*COS(D28) -> 0.2598076211 | G28: =A28*COS(D28)-B28*SIN(D28) -> 0.4877499075 | H28: =A28*SIN(D28)+B28*COS(D28) -> 0.06480762114 | I28: =G28-A28 -> 0.09774990748 | J28: =A28+I28 -> 0.4877499075
A29: left
A30: Hr | B30: Vr | C30: ar | D30: arad | E30: x1 | F30: y1 | G30: x2 | H30: y2 | I30: dx | J30: max left
A31: =-D2 -> -0.39 | B31: =E2 -> 0.3 | C31: =G2 -> 30 | D31: =-C31/(180/PI()) -> -0.5235987756 | E31: =-B31*SIN(D31) -> 0.15 | F31: =B31*COS(D31) -> 0.2598076211 | G31: =A31*COS(D31)-B31*SIN(D31) -> -0.1877499075 | H31: =A31*SIN(D31)+B31*COS(D31) -> 0.4548076211 | I31: =A31-G31 -> -0.2022500925 | J31: =A31-I31 -> -0.1877499075
A34: hrec minimum
A35: right
A36: Hr | B36: Vr | C36: ar | D36: arad | E36: x1 | F36: y1 | G36: x2 | H36: y2 | I36: dx | J36: min right
A37: =C2 -> 0.35 | B37: =E2 -> 0.3 | C37: =G2 -> 30 | D37: =-C37/(180/PI()) -> -0.5235987756 | E37: =-B37*SIN(D37) -> 0.15 | F37: =B37*COS(D37) -> 0.2598076211 | G37: =A37*COS(D37)-B37*SIN(D37) -> 0.4531088913 | H37: =A37*SIN(D37)+B37*COS(D37) -> 0.08480762114 | I37: =G37-A37 -> 0.1031088913 | J37: =A37+I37 -> 0.4531088913
A38: left
A39: Hr | B39: Vr | C39: ar | D39: arad | E39: x1 | F39: y1 | G39: x2 | H39: y2 | I39: dx | J39: min left
A40: =-C2 -> -0.35 | B40: =E2 -> 0.3 | C40: =G2 -> 30 | D40: =-C40/(180/PI()) -> -0.5235987756 | E40: =-B40*SIN(D40) -> 0.15 | F40: =B40*COS(D40) -> 0.2598076211 | G40: =A40*COS(D40)-B40*SIN(D40) -> -0.1531088913 | H40: =A40*SIN(D40)+B40*COS(D40) -> 0.4348076211 | I40: =A40-G40 -> -0.1968911087 | J40: =A40-I40 -> -0.1531088913
